bitfinex/quotes_ETHUSD_20241006
["timestamp","ask_amount","ask_price","bid_price","bid_amount"]
[1728258251545,0.06083108,2445.0,2444.7,7.58962788]
[1728258251776,0.06083108,2445.0,2444.8,3.27217]
[1728258253679,0.06083108,2445.0,2444.8,3.11226557]
[1728258255683,0.06083108,2445.0,2444.7,6.45974417]
[1728258255889,0.06083108,2445.0,2444.7,3.18744417]
[1728258256048,0.06083108,2445.0,2444.7,6.45975417]
[1728258256512,0.06083108,2445.0,2444.7,3.18744417]
[1728258256723,0.58487407,2445.0,2444.5,3.24222785]
[1728258257021,0.58487407,2445.0,2444.6,3.27244]
[1728258257977,0.58487407,2445.0,2444.7,3.27237]
[1728258258173,0.16308541,2445.0,2444.7,3.27237]
[1728258258617,0.06083108,2445.0,2444.8,3.27224]
[1728258258782,0.06083108,2445.0,2444.7,3.27237]
[1728258259184,0.06083108,2445.0,2444.7,6.54468]
[1728258259515,0.06083108,2445.0,2444.8,3.27223]
[1728258259691,0.06083108,2445.0,2444.8,3.06503724]
[1728258260514,0.06083108,2445.0,2444.8,3.27222]
[1728258262212,0.06083108,2445.0,2444.7,3.27231]
[1728258262522,0.06083108,2445.0,2444.7,3.2723]
[1728258262705,0.06083108,2445.0,2444.8,3.27224]
[1728258263203,0.06083108,2445.0,2444.7,3.14132968]
[1728258263402,0.06083108,2445.0,2444.8,3.27224]
[1728258263803,0.06083108,2445.0,2444.7,3.14132968]
[1728258264857,0.7698,2444.9,2444.5,3.27254]
[1728258265215,0.7698,2444.9,2444.6,3.27251]
[1728258265552,0.06101207,2444.8,2444.6,3.27251]
[1728258265718,0.06101207,2444.8,2444.6,3.04819129]
[1728258268936,0.06101207,2444.8,2444.6,2.94192286]
[1728258269555,0.06101207,2444.8,2444.5,6.54512]
[1728258269920,0.06101207,2444.8,2444.6,3.27249]
[1728258271844,0.06101207,2444.8,2444.6,6.37971265]
[1728258272052,0.7698,2444.9,2444.6,6.37971265]
[1728258272253,0.7698,2444.9,2444.6,3.10726265]
[1728258272453,0.06095355,2444.8,2444.6,3.10726265]
[1728258274336,0.7698,2444.9,2444.6,3.10726265]
[1728258274669,0.06091045,2444.8,2444.6,3.10726265]
[1728258274867,0.06091045,2444.8,2444.6,6.37969265]
[1728258275089,0.06091045,2444.8,2444.7,3.27238]
[1728258276267,0.06091045,2444.8,2444.6,3.27251]
[1728258277268,0.06091045,2444.8,2444.5,2.14047874]
[1728258277436,0.06091045,2444.8,2444.5,5.41310874]
[1728258277639,0.06091045,2444.8,2444.6,3.27251]
[1728258277932,0.06091045,2444.8,2444.6,3.08598563]
[1728258279367,0.06091045,2444.8,2444.5,0.4001958]
[1728258279572,0.06091045,2444.8,2444.5,3.6728458]
[1728258279775,0.06091045,2444.8,2444.5,3.67293867]
[1728258280460,0.06091045,2444.8,2444.6,3.27251]
[1728258280994,0.06091045,2444.8,2444.5,3.67293867]
[1728258281298,0.06091045,2444.8,2444.5,3.54411795]
[1728258282811,0.06091045,2444.8,2444.5,3.27265]
[1728258283314,0.06091045,2444.8,2444.5,3.27264]
[1728258283476,0.06091045,2444.8,2444.5,3.27258]
[1728258283677,0.06091045,2444.8,2444.5,1.74028294]
[1728258283921,0.06091045,2444.8,2444.6,3.27249]
[1728258284075,0.06091045,2444.8,2444.6,3.13155784]
[1728258285414,0.06091045,2444.8,2444.5,1.74028294]
[1728258285595,0.06091045,2444.8,2444.5,5.01286294]
[1728258287210,0.06091045,2444.8,2444.5,3.27258]
[1728258288414,0.06091045,2444.8,2444.4,5.01299294]
[1728258288577,0.06091045,2444.8,2444.5,3.27265]
[1728258289074,0.8083,2444.7,2444.4,3.27271]
[1728258289304,0.8083,2444.7,2444.4,6.5454]
[1728258289492,0.06082126,2444.6,2444.4,6.5454]
[1728258290309,0.06082126,2444.6,2444.4,6.35893616]
[1728258290716,0.06082126,2444.6,2444.4,3.08622616]
[1728258291020,0.06082126,2444.6,2444.4,6.35894616]
[1728258293223,0.06082126,2444.6,2444.4,6.35893616]
[1728258293395,0.06082126,2444.6,2444.4,6.59729809]
[1728258293722,0.06082126,2444.6,2444.4,2.92527559]
[1728258293884,0.7791,2444.5,2444.3,0.3993125]
[1728258294093,1.2005762,2444.5,2444.2,0.3993125]
[1728258294403,0.06055879,2444.4,2444.0,3.67264414]
[1728258294592,0.06055879,2444.4,2444.1,3.27316]
[1728258296428,0.06055879,2444.4,2444.1,3.14224548]
[1728258299549,0.06055879,2444.4,2444.1,3.04388618]
[1728258300641,0.06055879,2444.4,2444.1,4.78416912]
[1728258301202,0.06055879,2444.4,2444.1,3.04388618]
[1728258302536,0.06055879,2444.4,2444.1,2.85795508]
[1728258304807,0.06055879,2444.4,2443.9,8.01363294]
[1728258305108,0.06055879,2444.4,2444.0,4.07466329]
[1728258305535,0.06055879,2444.4,2444.0,3.88152766]
[1728258307037,3.27312,2444.2,2443.7,3.27364]
[1728258307246,0.7508,2444.1,2443.7,3.27364]
[1728258307545,0.81105065,2444.1,2443.7,3.27364]
[1728258308533,0.81105065,2444.1,2443.7,3.10086118]
[1728258308757,0.81105065,2444.1,2443.7,6.37450118]
[1728258309655,0.81105065,2444.1,2443.8,3.27357]
[1728258309827,0.81105065,2444.1,2443.7,6.37451118]
[1728258310735,0.81105065,2444.1,2443.8,3.27357]
[1728258310971,1.21946771,2444.1,2443.6,3.27385]
[1728258311137,4.04922,2444.0,2443.6,3.27385]
[1728258311326,0.9234994,2443.9,2443.4,3.27401]
[1728258311526,0.9234994,2443.9,2443.3,3.27418]
[1728258311838,0.86359486,2443.9,2443.5,3.14123105]
[1728258312047,1.81949535,2443.9,2443.5,3.14123105]
[1728258312368,0.05981464,2443.8,2443.5,3.14123105]
[1728258312950,0.7783,2443.7,2443.3,6.54834]
[1728258313153,0.05961254,2443.6,2443.3,6.54834]
[1728258313351,0.05961254,2443.6,2443.3,3.27416]
[1728258313768,0.05959727,2443.5,2443.1,2.12803942]
[1728258314095,0.7943,2443.4,2443.1,3.27446]
[1728258314432,0.0593831,2443.3,2443.1,3.27446]
[1728258314677,0.0593831,2443.3,2443.1,3.062237]
[1728258315476,0.0593831,2443.3,2443.2,3.27439]
[1728258316443,0.0593831,2443.3,2443.2,4.08208099]
[1728258316838,0.7623,2443.6,2443.2,4.08208099]
[1728258317037,0.05944362,2443.3,2443.2,3.27439]
[1728258317239,0.7623,2443.6,2443.2,3.27439]
[1728258317441,0.05935738,2443.3,2443.2,3.27439]
[1728258317752,0.7623,2443.6,2443.3,3.13279061]
[1728258318482,0.7623,2443.6,2443.2,3.27439]
[1728258318682,0.7623,2443.6,2443.2,6.54871]
[1728258318839,0.7623,2443.6,2443.2,6.54864]
[1728258319040,0.7623,2443.6,2443.2,3.27432]
[1728258319640,4.03617,2443.6,2443.0,6.54909]
[1728258319857,4.77737648,2443.6,2443.1,3.27448]
[1728258320082,0.8303,2443.5,2443.0,3.27453]
[1728258320281,3.27406,2443.5,2443.0,3.27453]
[1728258320457,0.8303,2443.4,2443.0,3.27453]
[1728258320977,0.8303,2443.4,2443.0,3.07287135]
[1728258321138,0.8303,2443.4,2443.1,3.27451]
[1728258321651,0.8303,2443.4,2443.3,3.27426]
[1728258321952,0.8303,2443.4,2443.2,3.27436]
[1728258322984,0.8303,2443.4,2443.1,3.27451]
[1728258323483,0.8303,2443.4,2443.1,6.54897]
[1728258323971,0.8303,2443.4,2443.1,6.37468455]
[1728258324554,0.8303,2443.4,2443.1,3.10022455]
[1728258325094,4.10444,2443.4,2442.9,3.27469]
[1728258325279,4.10444,2443.4,2442.7,8.40153305]
[1728258325280,0.767,2443.2,2442.8,3.27484]
[1728258325890,0.767,2443.2,2442.9,3.27479]
[1728258326263,0.767,2443.2,2442.7,9.54998]
[1728258326652,0.767,2443.2,2442.7,6.27499]
[1728258326852,0.767,2443.2,2442.8,3.27492]
[1728258327149,0.05914235,2443.1,2442.8,3.13297086]
[1728258327349,0.767,2443.0,2442.8,3.13297086]
[1728258327584,0.05898742,2442.9,2442.8,3.13297086]
[1728258327910,0.05898742,2442.9,2442.7,3.27499]
[1728258328099,0.767,2442.8,2442.5,3.27526]
[1728258328252,0.767,2442.8,2442.6,3.27519]
[1728258328593,0.05878616,2442.7,2442.6,3.27519]
[1728258328752,0.767,2442.8,2442.6,3.27519]
[1728258329085,0.05882929,2442.7,2442.6,3.27519]
[1728258329299,0.05882929,2442.7,2442.5,3.27526]
[1728258329451,0.767,2442.8,2442.5,3.27526]
[1728258329658,0.05874102,2442.6,2442.5,3.22526]
[1728258329857,0.767,2442.8,2442.5,6.50052]
[1728258330082,0.05865475,2442.6,2442.5,3.03237645]
[1728258330284,0.767,2442.8,2442.5,3.03237645]
[1728258330483,0.05865475,2442.6,2442.5,3.03237645]
[1728258330694,0.767,2442.8,2442.5,6.30763645]
[1728258330993,0.767,2442.8,2442.5,3.03237645]
[1728258331190,0.05872416,2442.7,2442.5,3.03237645]
[1728258331392,0.767,2442.8,2442.5,6.30762645]
[1728258331592,0.05886995,2442.7,2442.5,3.03237645]
[1728258331847,0.767,2442.8,2442.5,6.30763645]
[1728258332129,0.05880325,2442.6,2442.5,6.30763645]
[1728258332328,0.767,2442.8,2442.5,3.03237645]
[1728258332493,0.05880325,2442.6,2442.5,3.03237645]
[1728258332693,0.767,2442.8,2442.5,6.30763645]
[1728258332926,0.05882482,2442.6,2442.5,3.03237645]
[1728258333134,0.767,2442.8,2442.5,2.91201459]
[1728258333308,0.05884638,2442.6,2442.5,2.91201459]
[1728258333505,0.767,2442.8,2442.5,6.18727459]
[1728258333712,0.05876012,2442.6,2442.5,2.91201459]
[1728258333891,0.767,2442.8,2442.5,6.18727459]
[1728258334094,0.05876012,2442.6,2442.5,2.91201459]
[1728258334300,0.767,2442.8,2442.5,2.91201459]
[1728258334799,0.05884839,2442.7,2442.5,2.91201459]
[1728258334998,0.767,2442.8,2442.5,2.91201459]
[1728258335197,0.05884839,2442.7,2442.5,6.18724459]
[1728258335400,0.767,2442.8,2442.5,2.91201459]
[1728258335622,0.05886995,2442.7,2442.5,2.91201459]
[1728258336028,0.767,2442.8,2442.5,2.91201459]
[1728258336197,0.05880325,2442.6,2442.5,2.70361662]
[1728258336410,0.767,2442.8,2442.5,2.70361662]
[1728258336714,0.05893465,2442.7,2442.5,2.70361662]
[1728258337121,0.767,2442.8,2442.5,2.70361662]
[1728258337333,0.05884638,2442.6,2442.5,2.70361662]
[1728258337492,0.767,2442.8,2442.5,2.70361662]
[1728258337700,0.05884638,2442.6,2442.5,2.70361662]
[1728258337925,0.767,2442.8,2442.5,2.70361662]
[1728258338112,0.05876012,2442.6,2442.4,3.27546]
[1728258338307,1.28374675,2442.8,2442.4,3.27546]
[1728258338538,0.05867185,2442.5,2442.4,3.27546]
[1728258338841,0.05867185,2442.5,2442.3,3.27551]
[1728258339009,0.8073,2442.7,2442.3,3.27551]
[1728258339238,0.05876012,2442.6,2442.3,6.45098206]
[1728258339939,0.05876012,2442.6,2442.3,6.45097206]
[1728258340252,0.05876012,2442.6,2442.3,3.17545206]
[1728258341772,0.05876012,2442.6,2442.3,6.45098206]
[1728258341970,0.05876012,2442.6,2442.4,3.27543]
[1728258342372,0.05876012,2442.6,2442.4,3.0761907]
[1728258345349,0.05876012,2442.6,2442.4,2.96636785]
[1728258348351,0.05876012,2442.6,2442.4,2.83330359]
[1728258349309,0.05876012,2442.6,2442.5,5.01561294]
[1728258349667,0.7775,2443.0,2442.7,3.27495]
[1728258350633,0.7775,2443.0,2442.7,3.27505]
[1728258350750,0.7775,2443.0,2442.6,3.27517]
[1728258351456,0.7775,2443.0,2442.6,3.06183908]
[1728258352756,0.7775,2443.0,2442.6,6.33696908]
[1728258353051,0.7775,2443.0,2442.6,3.06183908]
[1728258353258,0.7775,2443.0,2442.7,3.27503]
[1728258354298,0.7775,2443.0,2442.6,3.06183908]
[1728258354450,5.09509156,2443.0,2442.5,3.27524]
[1728258354652,5.19743602,2443.0,2442.5,3.27524]
[1728258355285,1.92272602,2443.0,2442.4,3.27538]
[1728258355612,1.92272602,2443.0,2442.6,3.27518]
[1728258356394,5.19738602,2443.0,2442.6,3.27518]
[1728258357398,0.05898116,2442.9,2442.8,3.27493]
[1728258357565,0.05898116,2442.9,2442.8,3.10759259]
[1728258359459,0.91493245,2443.2,2442.8,3.10759259]
[1728258359792,0.05909828,2442.9,2442.8,3.10759259]
[1728258359992,0.91493245,2443.2,2442.8,3.10759259]
[1728258360608,0.05918851,2443.1,2442.8,3.01883411]
[1728258361197,0.05918851,2443.1,2442.6,3.27513]
[1728258361497,0.8273,2443.0,2442.6,3.27508]
[1728258361681,0.88644083,2443.0,2442.7,3.27505]
[1728258361929,0.98877612,2443.0,2442.7,3.27505]
[1728258362175,0.88644083,2443.0,2442.7,3.27505]
[1728258363575,0.88644083,2443.0,2442.7,3.14138449]
[1728258364216,0.88644083,2443.0,2442.8,3.27492]
[1728258366772,0.88644083,2443.0,2442.8,3.11395392]
[1728258369823,0.88644083,2443.0,2442.8,2.95027091]
[1728258371780,0.88644083,2443.0,2442.6,5.4105039]
[1728258371981,5.01722946,2443.0,2442.5,5.4106339]
[1728258372918,5.01722946,2443.0,2442.5,5.41492662]
[1728258373119,7.46466946,2443.0,2442.5,5.41492662]
[1728258373337,0.803,2442.9,2442.5,3.27532]
[1728258373526,0.90534319,2442.9,2442.5,3.27532]
[1728258373729,0.05892977,2442.8,2442.5,3.27532]
[1728258374456,0.86884302,2442.7,2442.3,2.56752794]
[1728258374649,0.7665,2442.6,2442.2,5.84318794]
[1728258374938,0.05868653,2442.5,2442.2,3.27566]
[1728258375302,0.7665,2442.6,2442.2,6.55131]
[1728258375502,0.05861982,2442.4,2442.3,3.27559]
[1728258375715,1.23081852,2442.6,2442.3,3.27559]
[1728258376028,0.05872549,2442.5,2442.3,3.16819768]
[1728258378749,0.05872549,2442.5,2442.2,3.27572]
[1728258378904,0.05872549,2442.5,2442.2,3.05498528]
[1728258379705,0.05872549,2442.5,2442.2,6.33064528]
[1728258379904,0.05872549,2442.5,2442.3,2.14223814]
[1728258382217,0.05872549,2442.5,2442.3,1.93425178]
[1728258382612,0.05872549,2442.5,2442.2,3.05498528]
[1728258384543,0.05821687,2442.0,2441.8,3.27626]
[1728258384743,0.8281,2442.2,2441.8,3.27626]
[1728258384946,0.05817169,2441.9,2441.8,3.27626]
[1728258385159,0.1023728,2442.1,2441.6,2.57037988]
[1728258385449,0.8094,2441.8,2441.5,3.2766]
[1728258385741,0.05834458,2441.7,2441.5,3.2766]
[1728258386148,0.8094,2441.8,2441.5,3.2766]
[1728258386350,0.05816998,2441.6,2441.2,2.57037988]
[1728258386554,0.8068,2441.6,2441.1,5.84748988]
[1728258386851,0.05784428,2441.5,2441.1,3.27711]
[1728258387257,0.8068,2441.6,2441.1,3.27711]
[1728258387258,4.08337,2441.6,2441.1,3.27711]
[1728258387551,0.0579572,2441.5,2441.2,3.27699]
[1728258388104,0.0579572,2441.5,2441.2,3.17634102]
[1728258389346,0.0579572,2441.5,2441.2,3.12634102]
[1728258390214,0.0579572,2441.5,2441.1,3.27711]
[1728258390414,0.0579572,2441.5,2441.3,3.27693]
[1728258391010,0.8089,2441.4,2441.3,3.27693]
[1728258391345,0.86673122,2441.4,2441.3,3.05883993]
[1728258394229,0.86673122,2441.4,2441.3,2.90564126]
[1728258396124,0.86673122,2441.4,2440.9,3.27739]
[1728258396323,0.86673122,2441.4,2441.0,3.27733]
[1728258396568,1.38347506,2441.4,2441.0,3.27733]
[1728258396864,1.38347506,2441.4,2441.1,3.27718]
[1728258397069,0.86673122,2441.4,2441.1,3.27718]
[1728258397267,0.86673122,2441.4,2441.1,3.07762253]
[1728258397426,0.86673122,2441.4,2441.1,6.35476253]
[1728258398165,0.86673122,2441.4,2441.2,3.27707]
[1728258399766,0.86673122,2441.4,2441.1,3.07762253]
[1728258400566,0.86673122,2441.4,2441.1,2.98500418]
[1728258401651,0.86673122,2441.4,2441.2,3.27699]
[1728258401856,0.05783122,2441.4,2441.3,3.27694]
[1728258402089,0.7922,2441.6,2441.3,3.27694]
[1728258402273,0.05593013,2441.5,2441.4,3.27676]
[1728258403482,0.05593013,2441.5,2441.4,3.12807003]
[1728258404553,0.05593013,2441.5,2441.4,3.97536923]
[1728258404760,0.8186,2441.8,2441.6,3.27653]
[1728258406447,0.8186,2441.8,2441.6,3.11209356]
[1728258409786,0.8186,2441.8,2441.4,7.25206923]
[1728258409987,0.8186,2441.8,2441.5,3.27666]
[1728258410482,0.8186,2441.8,2441.4,3.12807003]
[1728258411818,0.8186,2441.8,2441.5,3.27665]
[1728258412710,0.8186,2441.8,2441.5,3.08944057]
[1728258412998,0.10238707,2441.9,2441.4,3.12807003]
[1728258412999,0.10238707,2441.9,2441.6,3.27653]
[1728258415794,0.10238707,2441.9,2441.6,3.0628011]
[1728258417272,0.05634493,2441.8,2441.6,3.0628011]
[1728258417569,0.05634493,2441.8,2441.5,3.27666]
[1728258418910,0.05634493,2441.8,2441.5,3.14986747]
[1728258420223,0.05634493,2441.8,2441.6,3.27652]
[1728258420368,0.05634493,2441.8,2441.7,3.2764]
[1728258420699,0.8012,2442.2,2441.9,3.2761]
[1728258421760,0.8012,2442.2,2441.8,3.09493973]
[1728258421961,0.8012,2442.2,2441.9,3.27611]
[1728258422412,0.1023692,2442.3,2441.8,3.09493973]
[1728258422558,0.1023692,2442.3,2442.0,3.27599]
[1728258422763,4.20431828,2442.4,2442.0,3.27599]
[1728258422996,5.1263084,2442.4,2442.0,3.27599]
[1728258423205,1.8507584,2442.4,2442.0,3.27599]
[1728258423376,1.8507584,2442.4,2442.0,3.27593]
[1728258423701,0.7621,2442.6,2442.2,3.2756]
[1728258423913,0.7621,2442.6,2442.2,6.55125]
[1728258424065,0.86445527,2442.6,2442.3,3.27558]
[1728258424408,0.7621,2442.6,2442.3,3.27558]
[1728258424612,0.86445517,2442.6,2442.2,3.2756]
[1728258424776,1.27840769,2442.6,2442.2,3.2756]
[1728258424976,1.27840769,2442.6,2442.2,3.1431796]
[1728258425908,1.27840769,2442.6,2442.0,3.27591]
[1728258425909,0.7874,2442.5,2442.1,3.27586]
[1728258426113,0.88976064,2442.4,2442.0,3.27591]
[1728258426314,0.81,2442.3,2442.0,3.27591]
[1728258427700,0.81,2442.3,2442.1,3.27584]
[1728258427938,0.81,2442.3,2442.1,3.16371632]
[1728258429014,0.63193361,2442.4,2442.1,3.16371632]
[1728258429334,0.7637,2442.5,2442.2,3.2757]
[1728258431103,0.7637,2442.5,2442.2,3.17399179]
[1728258432316,0.05683065,2442.4,2442.2,3.17399179]
[1728258434175,0.05683065,2442.4,2442.2,3.02264386]
[1728258435516,0.05683065,2442.4,2442.2,6.29831386]
[1728258435850,0.05683065,2442.4,2442.2,3.02264386]
[1728258436027,0.7637,2442.5,2442.2,6.29828386]
[1728258436411,0.05507106,2442.4,2442.2,6.29828386]
[1728258436839,0.05507106,2442.4,2442.2,3.02264386]
[1728258437175,0.05507106,2442.4,2442.2,6.16331383]
[1728258437399,0.05507106,2442.4,2442.2,2.88765383]
[1728258438451,0.05507106,2442.4,2442.2,6.16332383]
[1728258439581,0.05507106,2442.4,2442.2,6.16330383]
[1728258440276,0.05507106,2442.4,2442.2,2.88765383]
[1728258440482,0.05507106,2442.4,2442.2,6.16331383]
[1728258441981,0.05507106,2442.4,2442.2,2.88765383]
[1728258442185,0.05507106,2442.4,2442.2,6.16330383]
[1728258443344,0.05507106,2442.4,2442.2,6.06861036]
[1728258443750,0.05507106,2442.4,2442.2,2.79296036]
[1728258444085,0.7797,2442.3,2441.9,2.14349335]
[1728258444383,7.30413463,2442.2,2441.7,5.41988335]
[1728258444591,0.7797,2442.1,2441.7,3.27639]
[1728258444827,0.48080246,2442.0,2441.7,3.27639]
[1728258444975,0.05475836,2442.0,2441.7,3.27639]
[1728258446329,0.05475836,2442.0,2441.7,3.19466304]
[1728258449449,0.05475836,2442.0,2441.7,3.02076374]
[1728258451023,0.05475836,2442.0,2441.8,3.2762]
[1728258451425,0.05475836,2442.0,2441.8,6.55239]
[1728258451929,0.05475836,2442.0,2441.8,3.27619]
[1728258452431,0.05475836,2442.0,2441.8,3.18077441]
[1728258455500,0.05475836,2442.0,2441.8,3.08746614]
[1728258455923,0.762,2441.9,2441.8,3.08746614]
[1728258456292,0.81682338,2441.9,2441.8,3.08746614]
[1728258456989,4.09296338,2441.9,2441.4,5.42280205]
[1728258457186,0.7897,2441.7,2441.4,2.14606205]
[1728258457444,0.10239416,2441.6,2441.4,2.14606205]
[1728258457727,0.15688506,2441.6,2441.2,8.70004205]
[1728258457915,0.15688506,2441.6,2441.2,6.55398]
[1728258457916,0.10239416,2441.6,2441.2,6.55398]
[1728258458290,0.10239416,2441.6,2441.2,3.27698]
[1728258458488,0.10239416,2441.6,2441.3,3.20171398]
[1728258458732,0.05431458,2441.5,2441.3,3.20171398]
[1728258458892,0.05431458,2441.5,2441.2,3.27698]
[1728258459091,0.8136,2441.4,2441.2,3.27698]
[1728258459396,0.0541379,2441.3,2441.2,3.27698]
[1728258459803,0.8136,2441.4,2441.2,3.27698]
[1728258460346,0.05418105,2441.3,2441.2,3.27698]
[1728258461587,0.05418105,2441.3,2441.2,3.07049686]
[1728258461789,0.05418105,2441.3,2441.0,8.70052205]
[1728258462033,0.91600378,2441.4,2441.0,5.42327205]
[1728258462230,0.8136,2441.4,2441.0,5.42327205]
[1728258462434,0.0541379,2441.3,2441.1,3.27714]
[1728258464221,0.0541379,2441.3,2441.0,5.42222629]
[1728258464222,0.0541379,2441.3,2441.2,3.27707]
[1728258464747,0.0541379,2441.3,2441.2,3.05258124]
[1728258466222,0.0541379,2441.3,2441.0,7.16250923]
[1728258466559,0.0541379,2441.3,2441.0,5.01749294]
[1728258466735,0.0541379,2441.3,2441.1,3.2772]
[1728258467635,0.0541379,2441.3,2441.1,3.055111]
[1728258470052,0.0541379,2441.3,2441.1,6.332261]
[1728258470259,0.0541379,2441.3,2441.1,3.055111]
[1728258470768,0.0541379,2441.3,2441.1,2.83576658]
[1728258471439,0.0541379,2441.3,2441.1,6.11290658]
[1728258471676,0.0541379,2441.3,2441.2,3.27707]
[1728258472167,0.05373706,2441.3,2441.2,3.27707]
[1728258472327,0.05373706,2441.3,2441.2,5.01735294]
[1728258472528,0.8286,2441.7,2441.2,5.01735294]
[1728258472763,0.8286,2441.7,2441.4,3.27679]
[1728258472764,0.05403908,2441.6,2441.4,3.27679]
[1728258472964,0.05403908,2441.6,2441.3,3.27693]
[1728258473868,0.05403908,2441.6,2441.2,3.27707]
[1728258474433,0.05403908,2441.6,2441.2,6.55408]
[1728258474656,0.05403908,2441.6,2441.2,3.27701]
[1728258474831,0.05403908,2441.6,2441.2,6.554]
[1728258475765,0.05403908,2441.6,2441.2,3.277]
[1728258476463,0.05403908,2441.6,2441.2,6.55401]
[1728258476675,0.05403908,2441.6,2441.2,3.277]
[1728258476831,0.05403908,2441.6,2441.2,3.13057947]
[1728258479637,4.18680548,2441.6,2441.1,3.27719]
[1728258479831,0.7544,2441.5,2441.1,3.27719]
[1728258480052,0.91073245,2441.5,2441.1,3.10171443]
[1728258480777,4.18742245,2441.5,2441.0,5.01752294]
[1728258480978,3.27682,2441.4,2441.0,3.27724]
[1728258481135,3.27682,2441.4,2440.9,2.14293443]
[1728258481136,0.7811,2441.3,2440.9,5.14293443]
[1728258481335,0.05365988,2441.2,2440.9,6.27746]
[1728258481671,0.7811,2441.3,2440.9,6.27746]
[1728258481832,0.7811,2441.3,2440.9,3.0]
[1728258482033,0.05370302,2441.2,2441.0,3.27728]
[1728258482255,0.7811,2441.3,2441.0,3.27728]
[1728258482467,0.05361467,2441.1,2441.0,3.27728]
[1728258482672,0.7811,2441.3,2441.0,3.27728]
[1728258482873,0.05361467,2441.1,2441.0,3.27728]
[1728258483039,0.7811,2441.3,2441.0,3.18230429]
[1728258483371,0.7811,2441.3,2441.0,6.45958429]
[1728258483575,0.7811,2441.3,2441.0,3.18230429]
[1728258483780,0.05361673,2441.2,2441.0,3.18230429]
[1728258483985,0.7811,2441.3,2441.0,3.18230429]
[1728258484282,0.05352838,2441.1,2441.0,3.18230429]
[1728258484479,0.7811,2441.3,2441.0,4.51660746]
[1728258484639,0.05354995,2441.1,2441.0,4.51660746]
[1728258484977,0.7811,2441.3,2441.0,4.51660746]
[1728258485676,0.05368145,2441.2,2441.0,4.51660746]
[1728258486185,0.05361467,2441.1,2441.0,4.51660746]
[1728258486359,0.05361467,2441.1,2441.0,4.31210017]
[1728258486544,0.05361467,2441.1,2441.0,2.977797]
[1728258486886,0.0536035,2441.1,2441.0,2.977797]
[1728258487276,0.7811,2441.3,2441.0,2.977797]
[1728258487583,0.05351721,2441.1,2441.0,2.977797]
[1728258487882,0.7811,2441.3,2441.0,2.977797]
[1728258488086,0.05351721,2441.1,2441.0,2.977797]
[1728258488379,0.7811,2441.3,2441.0,2.977797]
[1728258488583,0.05351721,2441.1,2441.0,2.977797]
[1728258488788,0.7811,2441.3,2441.0,4.07735099]
[1728258488993,0.05356036,2441.1,2441.0,4.07735099]
[1728258489152,0.7811,2441.3,2441.0,4.07735099]
[1728258489476,0.05364871,2441.2,2441.1,3.08467146]
[1728258489986,0.816,2441.8,2441.3,3.27681]
[1728258490160,0.816,2441.8,2441.4,3.27677]
[1728258490493,0.816,2441.8,2441.3,3.27681]
[1728258490675,0.816,2441.8,2441.5,3.27667]
[1728258491152,0.816,2441.8,2441.3,3.27681]
[1728258491354,4.09228,2441.8,2441.3,6.55367]
[1728258491559,4.94175726,2441.8,2441.3,6.55367]
[1728258491751,1.66547726,2441.8,2441.4,3.27679]
[1728258492270,0.05415681,2441.7,2441.4,3.27679]
[1728258492481,0.05415681,2441.7,2441.4,3.10667068]
[1728258492799,0.05411163,2441.6,2441.4,3.10667068]
[1728258493089,4.94175726,2441.8,2441.3,6.55367]
[1728258493254,0.05402331,2441.5,2441.3,6.55367]
[1728258493446,4.94175726,2441.8,2441.3,6.55367]
[1728258493653,0.05395655,2441.4,2441.3,3.27681]
[1728258493852,4.19466627,2441.8,2441.3,3.27681]
[1728258494055,0.05397812,2441.4,2441.3,3.27681]
[1728258494279,4.19466627,2441.8,2441.3,3.27681]
[1728258494589,0.8112,2441.4,2441.0,3.27723]
[1728258494808,0.05378507,2441.3,2440.9,6.27741]
[1728258495553,0.05378507,2441.3,2440.9,6.0604907]
[1728258496793,0.05378507,2441.3,2441.0,3.27733]
[1728258496970,0.05378507,2441.3,2441.0,6.55461]
[1728258497172,0.05378507,2441.3,2441.0,3.27728]
[1728258497571,0.05378507,2441.3,2441.0,6.55455]
[1728258497899,0.05378507,2441.3,2441.0,3.27727]
[1728258498601,0.05378507,2441.3,2441.0,6.35588809]
[1728258498759,0.05378507,2441.3,2441.1,3.27714]
[1728258499674,0.05378507,2441.3,2441.2,2.14874397]
[1728258500207,0.05378507,2441.3,2441.1,5.42588397]
[1728258500562,0.05378507,2441.3,2441.2,2.14874397]
[1728258501707,0.05378507,2441.3,2441.2,1.93574679]
[1728258503413,0.05378507,2441.3,2441.1,3.27711]
[1728258504116,0.05378507,2441.3,2441.2,3.27707]
[1728258504409,0.00378507,2441.3,2441.2,3.27707]
[1728258504574,0.05014961,2441.3,2441.2,3.27707]
[1728258504775,0.05014961,2441.3,2441.2,3.1243089]
[1728258506789,0.7906,2441.6,2441.2,3.1243089]
[1728258506977,0.04923682,2441.5,2441.3,3.27687]
[1728258507902,0.04923682,2441.5,2441.3,3.27694]
[1728258508098,0.04923682,2441.5,2441.4,3.2768]
[1728258508708,0.04923682,2441.5,2441.4,5.42765236]
[1728258509719,0.04923682,2441.5,2441.4,3.2768]
[1728258510422,0.04923682,2441.5,2441.3,5.42778296]
[1728258510893,0.04923682,2441.5,2441.3,5.31568768]
[1728258511099,0.04923682,2441.5,2441.4,3.2768]
[1728258514029,0.04923682,2441.5,2441.4,5.32379119]
[1728258514590,0.04923682,2441.5,2441.4,5.32376069]
[1728258516552,0.04923682,2441.5,2441.4,3.17294823]
[1728258516894,0.04923682,2441.5,2441.4,2.97985189]
[1728258518235,0.04923682,2441.5,2441.3,5.31565718]
[1728258518590,0.04923682,2441.5,2441.4,3.2768]
[1728258520005,0.04923682,2441.5,2441.4,3.08740831]
[1728258522449,0.04923682,2441.5,2441.4,5.23831028]
[1728258522648,0.04923682,2441.5,2441.4,3.08740831]
[1728258522850,0.04923682,2441.5,2441.4,5.23831028]
[1728258523007,0.92949284,2441.8,2441.4,2.95801443]
[1728258523204,0.05046689,2441.7,2441.4,2.95801443]
[1728258523408,2.09506212,2441.8,2441.4,5.1089164]
[1728258523648,0.05046689,2441.7,2441.4,5.1089164]
[1728258523853,2.09506212,2441.8,2441.5,3.27665]
[1728258524054,0.05036998,2441.6,2441.5,3.27665]
[1728258524258,2.09506212,2441.8,2441.5,3.27665]
[1728258524448,0.05036998,2441.6,2441.5,3.27665]
[1728258524650,0.92949284,2441.8,2441.5,3.27665]